bitfinex-derivatives/quotes_BNBF0:USTF0_20251219
["timestamp","ask_amount","ask_price","bid_price","bid_amount"]
[1766179256111,1.74639615,858.94,857.69,0.86976607]
[1766179256513,1.74639615,858.95,857.7,0.86976607]
[1766179259115,1.74639615,858.95,857.69,0.86976607]
[1766179259920,1.74639615,858.95,857.7,0.86976607]
[1766179261217,1.74639615,858.96,857.69,0.86976607]
[1766179261623,1.74639615,858.97,857.69,0.86976607]
[1766179262216,1.74639615,858.96,857.69,0.86976607]
[1766179262424,1.74639615,858.97,857.69,0.86976607]
[1766179262617,1.74639615,858.95,857.68,0.86976607]
[1766179263318,1.74639615,858.96,857.67,0.86976607]
[1766179264022,1.74639615,858.95,857.67,0.86976607]
[1766179264222,1.74639615,859.0,857.71,0.86976607]
[1766179265322,1.74639615,859.0,857.7,0.86976607]
[1766179266221,1.74639615,859.01,857.7,0.86976607]
[1766179267225,1.74639615,859.01,857.69,0.86976607]
[1766179268423,1.74639615,859.02,857.69,0.86976607]
[1766179269325,1.74639615,859.02,857.68,0.86976607]
[1766179271229,1.74639615,859.02,857.67,0.86976607]
[1766179271925,1.74639615,859.02,857.68,0.86976607]
[1766179272226,1.74639615,859.02,857.67,0.86976607]
[1766179272429,1.74639615,859.03,857.67,0.86976607]
[1766179272626,1.74639615,859.03,857.68,0.86976607]
[1766179273330,0.20254697,859.4,857.68,0.86976607]
[1766179273331,1.74639615,859.04,857.68,0.86976607]
[1766179275230,1.74639615,859.04,857.67,0.86976607]
[1766179280238,1.74639615,859.05,857.67,0.86976607]
[1766179282037,1.74639615,859.04,857.67,0.86976607]
[1766179282641,1.74639615,859.02,857.64,0.86976607]
[1766179283538,1.74639615,859.03,857.65,0.86976607]
[1766179283737,1.74639615,859.15,857.78,0.86976607]
[1766179284238,1.74639615,859.16,857.77,0.86976607]
[1766179286242,1.74639615,859.17,857.77,0.86976607]
[1766179287242,1.74639615,859.17,857.76,0.86976607]
[1766179289443,1.74639615,859.18,857.76,0.86976607]
[1766179290746,1.74639615,859.18,857.75,0.86976607]
[1766179291245,1.74639615,859.13,857.7,0.86976607]
[1766179292245,1.74639615,859.13,857.71,0.86976607]
[1766179292750,1.74639615,859.16,857.74,0.86976607]
[1766179295257,0.20254697,859.4,857.74,0.86976607]
[1766179295258,1.74639615,859.15,857.74,0.86976607]
[1766179296357,1.74639615,859.15,857.75,0.86976607]
[1766179298154,1.74639615,859.14,857.75,0.86976607]
[1766179299260,1.74639615,859.14,857.76,0.86976607]
[1766179300257,1.74639615,859.13,857.76,0.86976607]
[1766179301362,1.74639615,859.12,857.76,0.86976607]
[1766179302360,1.74639615,859.12,857.77,0.86976607]
[1766179303164,1.74639615,859.12,857.78,0.86976607]
[1766179303364,1.74639615,859.11,857.78,0.86976607]
[1766179303565,1.74639615,859.11,857.77,0.86976607]
[1766179304363,1.74639615,859.11,857.78,0.86976607]
[1766179305262,1.74639615,859.1,857.79,0.86976607]
[1766179306166,1.74639615,859.09,857.8,0.86976607]
[1766179307168,1.74639615,859.08,857.81,0.86976607]
[1766179308263,1.74639615,859.07,857.82,0.86976607]
[1766179309168,1.74639615,859.05,857.83,0.86976607]
[1766179310370,1.74639615,858.96,857.75,0.86976607]
[1766179312981,1.74639615,858.94,857.73,0.86976607]
[1766179314074,0.2027216,858.64,857.73,0.86976607]
[1766179315177,0.2027216,858.64,857.74,0.86976607]
[1766179315378,0.2027216,858.64,857.74,7.57287801]
[1766179315678,0.2027216,858.64,857.74,6.70311194]
[1766179316173,0.2027216,858.64,857.74,7.57287801]
[1766179321778,0.2027216,858.64,857.74,6.70311194]
[1766179352811,0.2027216,858.64,857.55,0.87208679]
[1766179355109,0.2027216,858.64,857.53,0.87208679]
[1766179362617,0.2027216,858.64,857.59,0.87208679]
[1766179364319,0.2027216,858.64,857.6,0.87208679]
[1766179366321,0.2027216,858.64,857.61,0.87208679]
[1766179368322,0.2027216,858.64,857.62,0.87208679]
[1766179372325,0.2027216,858.64,857.63,0.87208679]
[1766179376231,0.2027216,858.64,857.64,0.87208679]
[1766179377232,0.2027216,858.64,857.67,0.87208679]
[1766179377433,0.2027216,858.64,857.69,0.87208679]
[1766179377631,0.2027216,858.64,857.53,7.83444432]
[1766179377632,0.2027216,858.64,857.71,0.87208679]
[1766179387442,0.2027216,858.64,857.72,0.87343885]
[1766179393345,0.2027216,858.64,857.71,0.87343885]
[1766179394147,0.2027216,858.64,857.72,0.87343885]
[1766179394348,0.2027216,858.64,857.71,0.87343885]
[1766179402161,0.2027216,858.64,857.72,0.87343885]
[1766179413168,0.2027216,858.64,857.7,0.87343885]
[1766179413469,0.2027216,858.64,857.71,0.87343885]
[1766179418369,0.2027216,858.64,857.72,0.87343885]
[1766179421270,0.2027216,858.64,857.73,0.87343885]
[1766179423067,0.2027216,858.64,857.75,0.87343885]
[1766179430378,0.2027216,858.64,857.76,0.87343885]
[1766179433281,0.2027216,858.64,857.77,0.87343885]
[1766179436279,0.2027216,858.64,857.78,0.87343885]
[1766179437283,0.2027216,858.64,857.79,0.87343885]
[1766179463099,0.2027216,858.64,857.78,0.87343885]
[1766179473109,0.2027216,858.64,857.79,0.87343885]
[1766179503236,0.2027216,858.64,857.78,0.87343885]
[1766179506941,1.74639615,859.04,858.02,0.87343885]
[1766179507138,1.74639615,859.12,858.1,0.87343885]
[1766179507335,0.20268913,858.95,858.05,0.87343885]
[1766179508334,0.20268913,858.95,858.02,0.87343885]
[1766179509140,0.20268913,858.95,858.01,0.87343885]
[1766179509339,0.20268913,858.95,858.0,0.87343885]
[1766179510038,0.20268913,858.95,858.02,0.87343885]
[1766179511240,0.20268913,858.95,858.0,0.87343885]
[1766179511441,0.20268913,858.95,858.02,0.87343885]
[1766179512241,0.20268913,858.95,858.01,0.87343885]
[1766179513142,1.74639615,859.36,858.03,0.87343885]
[1766179513344,0.2026313,859.06,858.03,0.87343885]
[1766179513844,1.74639615,859.41,858.06,0.87343885]
[1766179514042,0.20262009,859.12,858.06,0.87343885]
[1766179514240,0.20262009,859.12,858.05,0.87343885]
[1766179514440,1.74639615,859.49,858.11,0.87343885]
[1766179514641,0.20260416,859.22,858.11,0.87343885]
[1766179515141,0.20260416,859.22,858.09,0.87343885]
[1766179517146,0.20260416,859.22,858.08,0.87343885]
[1766179517856,0.20260416,859.22,858.17,0.87343885]
[1766179518053,1.74639615,859.77,858.3,0.87343885]
[1766179518349,1.74639615,859.75,858.21,0.87343885]
[1766179518547,4.07492437,860.7,857.74,6.81246224]
[1766179518548,1.74639615,859.7,858.16,0.87343885]
[1766179518748,0.20257527,859.41,858.16,0.87343885]
[1766179519254,0.20257527,859.41,858.09,0.87343885]
[1766179519455,0.20257527,859.41,858.07,0.87343885]
[1766179520354,0.20257527,859.41,858.06,0.87343885]
[1766179521154,0.20257527,859.41,858.05,0.87343885]
[1766179521856,0.20257527,859.41,858.01,0.87343885]
[1766179522256,0.20257527,859.41,857.85,1.16455738]
[1766179522257,0.20257527,859.41,858.0,0.87343885]
[1766179522956,0.20257527,859.41,857.97,0.87343885]
[1766179523153,0.20257527,859.41,857.94,0.87343885]
[1766179523353,0.20257527,859.41,857.88,0.87343885]
[1766179523552,0.20257527,859.41,857.87,0.87343885]
[1766179523857,0.20257527,859.41,857.84,0.87343885]
[1766179524458,0.20257527,859.41,857.83,0.87343885]
[1766179532864,0.20257527,859.41,857.82,0.87343885]
[1766179533069,1.74639615,859.35,857.68,0.87343885]
[1766179533269,1.74639615,859.33,857.68,0.87343885]
[1766179533565,1.74639615,859.33,857.67,0.87343885]
[1766179534269,1.74639615,859.33,857.68,0.87343885]
[1766179538168,1.74639615,859.32,857.69,0.87343885]
[1766179539969,1.74639615,859.29,857.69,0.87343885]
[1766179540174,1.74639615,859.27,857.65,6.24975597]
[1766179541471,1.74639615,859.26,857.65,6.24975597]
[1766179544177,1.74639615,859.25,857.65,6.24975597]
[1766179545075,1.74639615,859.22,857.65,6.24975597]
[1766179545278,1.74639615,859.21,857.65,6.24975597]
[1766179545674,1.74639615,859.22,857.65,6.24975597]
[1766179546176,1.74639615,859.21,857.65,6.24975597]
[1766179546876,1.74639615,859.18,857.65,6.24975597]
[1766179549180,1.74639615,859.16,857.65,6.24975597]
[1766179549681,1.74639615,859.15,857.65,6.24975597]
[1766179549881,1.74639615,859.13,857.65,6.24975597]
[1766179550382,1.74639615,859.11,857.65,6.24975597]
[1766179550678,1.74639615,859.04,857.65,6.24975597]
[1766179552083,1.74639615,859.02,857.65,6.24975597]
[1766179552284,1.74639615,859.0,857.65,6.24975597]
[1766179553184,1.74639615,858.96,857.65,6.24975597]
[1766179554086,1.74639615,858.96,857.41,0.2027399]
[1766179554285,1.74639615,858.9,857.41,0.2027399]
[1766179554785,1.74639615,858.9,857.27,0.87343885]
[1766179554986,1.74639615,858.84,857.3,0.20278657]
[1766179555182,1.74639615,858.85,857.3,0.20278657]
[1766179555686,1.74639615,858.83,857.3,0.20278657]
[1766179556184,1.74639615,858.84,857.16,0.87343885]
[1766179556386,1.74639615,858.71,857.09,6.57090749]
[1766179556586,1.74639615,858.7,857.13,0.20281611]
[1766179556987,1.74639615,858.65,857.13,0.20281611]
[1766179557188,1.74639615,858.68,857.13,0.20281611]
[1766179557384,1.15110969,858.42,857.09,6.57090749]
[1766179557688,1.74639615,858.57,857.09,6.57090749]
[1766179557689,1.15110969,858.41,857.09,6.57090749]
[1766179558183,1.15110969,858.45,856.82,0.87343885]
[1766179558390,1.15110969,858.1,856.46,0.87343885]
[1766179558586,1.15110969,858.1,856.62,0.20290658]
[1766179559288,1.15110969,858.17,856.62,0.20290658]
[1766179559484,1.15110969,858.18,856.62,0.20290658]
[1766179559886,1.15110969,858.15,856.62,0.20290658]
[1766179560889,1.74639615,858.3,856.62,0.20290658]
[1766179561085,1.74639615,858.31,856.62,0.20290658]
[1766179561284,1.74639615,858.37,856.62,0.20290658]
[1766179562193,1.14671911,858.22,856.36,0.87343885]
[1766179562492,1.14671911,858.26,856.52,0.20296397]
[1766179562893,1.74639615,858.41,856.52,0.20296397]
[1766179563291,1.74639615,858.49,856.52,0.20296397]
[1766179564392,1.74639615,858.54,856.52,0.20296397]
[1766179565095,1.14326315,858.38,856.52,0.20296397]
[1766179565291,1.14326315,858.43,856.52,0.20296397]
[1766179566292,1.14326315,858.47,856.52,0.20296397]
[1766179566492,1.74639615,858.62,856.52,0.20296397]
[1766179567193,1.74639615,858.63,856.52,0.20296397]
[1766179567496,1.74639615,858.66,856.52,0.20296397]
[1766179568398,1.74639615,858.7,856.52,0.20296397]
[1766179569395,1.74639615,858.73,856.52,0.20296397]
[1766179570395,2.91064995,859.34,856.52,0.20296397]
[1766179570396,1.74639615,858.75,856.52,0.20296397]
[1766179571300,1.74639615,858.76,856.52,0.20296397]
[1766179571495,1.74639615,858.78,856.52,0.20296397]
[1766179572398,1.74639615,858.8,856.52,0.20296397]
[1766179573304,1.74639615,858.78,856.52,0.20296397]
[1766179574104,1.74639615,858.96,856.52,0.20296397]
[1766179574299,1.74639615,858.97,856.52,0.20296397]
[1766179576501,1.74639615,858.75,856.52,0.20296397]
[1766179577302,1.74639615,858.76,856.52,0.20296397]
[1766179577707,1.74639615,858.78,856.52,0.20296397]
[1766179578606,1.74639615,858.83,856.52,0.20296397]
[1766179579307,1.74639615,858.82,856.52,0.20296397]
[1766179580110,1.74639615,858.81,856.52,0.20296397]
[1766179580310,1.74639615,858.82,856.52,0.20296397]
[1766179581210,1.74639615,858.81,856.52,0.20296397]
[1766179581412,0.20257527,859.41,856.52,0.20296397]
[1766179581413,1.74639615,858.82,856.52,0.20296397]
[1766179582312,1.74639615,858.81,856.52,0.20296397]
[1766179583213,1.74639615,858.79,856.52,0.20296397]
[1766179586313,1.74639615,858.78,856.52,0.20296397]
[1766179587115,1.74639615,858.77,856.52,0.20296397]
[1766179587616,1.74639615,858.84,856.52,0.20296397]
[1766179588216,1.74639615,858.83,856.52,0.20296397]
[1766179589218,1.74639615,858.82,856.52,0.20296397]
[1766179590312,1.74639615,858.8,856.52,0.20296397]
[1766179590516,1.74639615,858.88,856.52,0.20296397]
[1766179590817,0.20257527,859.41,856.52,0.20296397]
[1766179590818,1.74639615,859.01,856.52,0.20296397]
[1766179591017,1.74639615,859.03,856.52,0.20296397]
[1766179591219,1.74639615,859.01,856.52,0.20296397]
[1766179591418,1.74639615,859.08,856.52,1.06714924]
[1766179592216,1.74639615,859.06,856.53,0.86418527]
[1766179592826,1.74639615,859.03,856.52,0.20296397]
[1766179593227,1.74639615,858.96,856.52,0.20296397]
[1766179594325,1.74639615,858.95,856.52,0.20296397]
[1766179595528,1.74639615,858.94,856.52,0.20296397]
[1766179596228,1.74639615,858.93,856.52,0.20296397]
[1766179596427,1.74639615,858.92,856.52,0.20296397]
[1766179597029,1.74639615,858.96,856.55,0.86418527]
[1766179597232,1.74639615,858.95,856.56,0.86418527]
[1766179597431,1.74639615,858.95,856.57,0.86418527]
[1766179598133,1.74639615,858.93,856.58,0.86418527]
[1766179598329,1.74639615,858.92,856.58,0.86418527]
[1766179598728,1.74639615,858.93,856.58,0.86418527]
[1766179599032,1.74639615,858.93,856.59,0.86418527]
[1766179599234,1.74639615,858.92,856.6,0.86418527]
[1766179599434,1.74639615,858.91,856.6,0.86418527]
[1766179600235,1.74639615,858.89,856.61,0.86418527]
[1766179600434,1.74639615,858.89,856.62,0.86418527]
[1766179601134,1.74639615,858.87,856.62,0.86418527]
[1766179601334,1.74639615,858.87,856.64,0.86418527]
[1766179601633,1.74639615,858.88,856.64,0.86418527]
[1766179602135,1.74639615,858.86,856.65,0.86418527]
[1766179602336,1.74639615,858.85,856.65,0.86418527]
[1766179603236,1.74639615,858.92,856.75,0.86418527]
[1766179603437,1.74639615,858.91,856.75,0.86418527]
[1766179604337,1.74639615,858.88,856.77,0.86418527]
[1766179605136,0.20257527,859.41,856.78,0.86418527]
[1766179605137,1.74639615,858.86,856.78,0.86418527]
[1766179605339,1.74639615,858.85,856.78,0.86418527]
[1766179606140,1.74639615,858.83,856.79,0.86418527]
[1766179606340,1.74639615,858.82,856.8,0.86418527]
[1766179607337,1.74639615,858.8,856.81,0.86418527]
[1766179608342,1.74639615,858.76,856.83,0.86418527]
[1766179609142,1.74639615,858.74,856.84,0.86418527]
[1766179609343,1.74639615,858.73,856.84,0.86418527]
[1766179610242,1.74639615,858.7,856.86,0.86418527]
[1766179610743,1.74639615,858.75,856.91,0.86418527]
[1766179611244,1.74639615,858.73,856.92,0.86418527]
[1766179612140,1.74639615,858.7,856.93,0.86418527]
[1766179613245,1.74639615,858.68,856.94,0.86418527]
[1766179614146,1.74639615,858.66,856.96,0.86418527]
[1766179615141,1.74639615,858.65,856.97,0.86418527]
[1766179616347,1.74639615,858.64,856.97,0.86418527]
[1766179616848,1.74639615,858.6,856.93,0.86418527]
[1766179617045,2.91064995,859.25,856.52,0.20296397]
[1766179617046,1.74639615,858.56,856.9,0.86418527]
[1766179617445,1.74639615,858.52,856.86,0.86418527]
[1766179619447,1.74639615,858.51,856.86,0.86418527]
[1766179621254,1.74639615,858.52,856.86,0.86418527]
[1766179622252,1.74639615,858.51,856.87,0.86418527]
[1766179622553,1.74639615,858.56,856.92,0.86418527]
[1766179623253,1.74639615,858.62,856.97,0.86418527]
[1766179623854,1.74639615,858.62,856.52,0.20296397]
[1766179623855,1.74639615,858.65,857.01,0.86418527]
[1766179624352,1.74639615,858.65,856.85,1.14562121]
[1766179625056,1.74639615,858.65,857.01,0.86924553]
[1766179625256,1.74639615,858.65,856.85,1.14562121]
[1766179625556,2.91064995,859.24,856.52,0.20296397]
[1766179626055,1.72722889,858.68,857.04,0.86925005]
[1766179626557,1.72722889,858.67,857.04,0.86928636]
[1766179626755,1.72722889,858.68,857.04,0.86928636]
[1766179627754,1.72722889,858.71,857.07,0.86928636]
[1766179628656,2.91064995,859.32,856.52,0.20296397]
[1766179628657,1.72722889,858.74,857.1,0.86928636]
[1766179630353,1.72722889,858.73,857.1,0.86928636]
[1766179631356,1.72722889,858.74,857.1,0.86928636]
[1766179631553,1.72722889,858.64,857.01,0.86928636]
[1766179632353,1.72722889,858.64,857.02,0.86928636]
[1766179633255,1.72722889,858.61,857.0,0.86928636]
[1766179637358,1.72722889,858.6,857.01,0.86928636]
[1766179638259,1.72722889,858.59,857.02,0.86928636]
[1766179639461,1.72722889,858.58,857.03,0.86928636]
[1766179640261,1.72722889,858.57,857.04,0.86928636]
[1766179641363,1.72722889,858.56,857.05,0.86928636]
[1766179642262,1.72722889,858.55,857.06,0.86928636]
[1766179643358,1.72722889,858.54,857.07,0.86928636]
[1766179644359,1.72722889,858.53,857.08,0.86928636]
[1766179645262,1.72722889,858.51,857.1,0.86928636]
[1766179645459,1.72722889,858.52,857.1,0.86928636]
[1766179646363,1.72722889,858.5,857.12,0.86928636]
[1766179647362,1.72722889,858.48,857.14,0.86928636]
[1766179648265,1.72722889,858.46,857.16,0.86928636]
[1766179648461,1.72722889,858.39,857.09,0.86928636]
[1766179648665,1.72722889,858.38,857.08,0.86928636]
[1766179649364,1.72722889,858.34,857.08,0.86928636]
[1766179650461,1.72722889,858.32,857.11,0.86928636]
[1766179651463,1.72722889,858.31,857.11,0.86928636]
[1766179653268,1.72722889,858.34,857.14,0.86928636]
[1766179662471,1.72722889,858.34,857.13,0.86928636]
[1766179663379,1.72722889,858.33,857.13,0.86928636]
[1766179664278,1.72722889,858.34,857.13,0.86928636]
[1766179668774,1.72722889,858.28,857.06,0.86928636]
[1766179669074,1.72722889,858.27,857.06,0.86928636]
[1766179669378,1.72722889,858.28,857.06,0.86928636]
[1766179669872,1.72722889,858.25,857.03,0.86928636]
[1766179670377,1.72722889,858.25,857.02,0.86928636]
[1766179671374,1.72722889,858.26,857.02,0.86928636]
[1766179673278,1.72722889,858.27,857.02,0.86928636]
[1766179674782,1.72722889,858.23,856.98,0.86928636]
[1766179675383,1.72722889,858.24,856.97,0.86928636]
[1766179677380,1.72722889,858.25,856.97,0.86928636]
[1766179678380,1.72722889,858.25,856.96,0.86928636]
[1766179681182,1.72722889,858.26,856.95,0.86928636]
[1766179681783,1.72722889,858.25,856.95,0.86928636]
[1766179682186,1.72722889,858.26,856.95,0.86928636]
[1766179684486,1.72722889,858.26,856.94,0.86928636]
[1766179687187,1.72722889,858.27,856.94,0.86928636]
[1766179687391,1.72722889,858.26,856.94,0.86928636]
[1766179688186,1.72722889,858.27,856.94,0.86928636]
[1766179688390,1.72722889,858.26,856.94,0.86928636]
[1766179688993,1.72722889,858.26,856.94,0.87277645]
[1766179689588,1.72722889,858.26,856.95,0.87277645]
[1766179690194,1.72722889,858.26,856.94,0.87277645]
[1766179690489,1.72722889,858.26,856.95,0.87277645]
[1766179691293,1.72722889,858.25,856.95,0.87277645]
[1766179693292,1.72722889,858.22,856.92,0.87277645]
[1766179698301,1.72722889,858.21,856.93,0.87277645]
[1766179702400,1.72722889,858.21,856.94,0.87277645]
[1766179703305,2.91064995,858.82,856.97,0.87277645]
[1766179703306,1.72722889,858.23,856.97,0.87277645]
[1766179705505,1.72722889,858.22,856.97,0.87277645]
[1766179706206,1.72722889,858.22,856.98,0.87277645]
[1766179707307,1.72722889,858.21,856.98,0.87277645]
[1766179708312,1.72722889,858.21,856.99,0.87277645]
[1766179711309,1.72722889,858.2,856.99,0.87277645]
[1766179712314,1.72722889,858.2,857.0,0.87277645]
[1766179713314,1.72722889,858.2,856.99,0.87277645]
[1766179715116,1.72722889,858.2,857.0,0.87277645]
[1766179716317,1.72722889,858.19,857.0,0.87277645]
[1766179718915,0.20288943,857.9,857.0,0.87277645]
[1766179719319,0.20288943,857.9,857.01,0.87277645]
[1766179719920,1.72722889,858.19,857.01,0.87277645]
[1766179720120,1.72722889,858.46,857.28,0.87277645]
[1766179720417,0.2028569,858.17,857.26,0.87277645]
[1766179721317,0.2028569,858.17,857.25,0.87277645]
[1766179722322,0.2028569,858.17,857.24,0.87277645]
[1766179723119,0.2028569,858.17,857.23,0.87277645]
[1766179724323,0.2028569,858.17,857.22,0.87277645]
[1766179726224,0.2028569,858.17,857.21,0.87277645]
[1766179727319,0.2028569,858.17,857.2,0.87277645]
[1766179729120,0.2028569,858.17,857.19,0.87277645]
[1766179731223,0.2028569,858.17,857.18,0.87277645]
[1766179732322,0.2028569,858.17,857.17,0.87277645]
[1766179734227,0.2028569,858.17,857.16,0.87277645]
[1766179736429,0.2028569,858.17,857.15,0.87277645]
[1766179741432,0.2028569,858.17,857.14,0.87277645]
[1766179743434,0.2028569,858.17,857.15,0.87277645]
[1766179752548,0.2028569,858.17,857.1,0.87277645]
[1766179752748,0.2028569,858.17,857.06,0.87277645]
[1766179754146,0.2028569,858.17,857.07,0.87277645]
[1766179758253,0.2028569,858.17,857.08,0.87277645]
[1766179761258,0.2028569,858.17,857.09,0.87277645]
[1766179764161,0.2028569,858.17,857.1,0.87277645]
[1766179767263,0.2028569,858.17,857.11,0.87277645]
[1766179769160,0.2028569,858.17,857.12,0.87277645]
[1766179771260,0.2028569,858.17,857.13,0.87277645]
[1766179772161,0.2028569,858.17,857.14,0.87277645]
[1766179774165,0.2028569,858.17,857.15,0.87277645]
[1766179775167,0.2028569,858.17,857.16,0.87277645]
[1766179776271,0.2028569,858.17,857.17,0.87277645]
[1766179777371,0.2028569,858.17,857.18,0.87277645]
[1766179778365,0.2028569,858.17,857.19,0.87277645]
[1766179779274,0.2028569,858.17,857.2,0.87277645]
[1766179784976,0.2028569,858.17,857.29,0.87277645]
[1766179793481,0.2028569,858.17,857.3,0.87277645]
[1766179799683,1.72722889,858.47,857.3,0.87277645]
[1766179799880,1.72722889,858.55,857.38,0.87277645]
[1766179800080,0.20280548,858.32,857.38,0.87277645]
[1766179800282,1.72722889,858.66,857.49,0.87277645]
[1766179800586,0.20278184,858.44,857.49,0.87277645]
[1766179801285,0.20278184,858.44,857.48,0.87277645]
[1766179802288,0.20278184,858.44,857.47,0.87277645]
[1766179803189,0.20278184,858.44,857.45,0.87277645]
[1766179804190,0.20278184,858.44,857.44,0.87277645]
[1766179805888,0.20278184,858.44,857.5,0.87277645]
[1766179806092,0.20278184,858.44,856.95,9.58523747]
[1766179806093,0.20278184,858.44,857.53,0.87277645]
[1766179806293,0.20278184,858.44,857.51,0.87277645]
[1766179807288,0.20278184,858.44,857.5,0.87277645]
[1766179808390,0.20278184,858.44,857.19,1.7385001]
[1766179808391,0.20278184,858.44,857.49,0.87277645]
[1766179809192,0.20278184,858.44,857.47,0.87277645]
[1766179811199,0.20278184,858.44,857.46,0.87277645]
[1766179812201,0.20278184,858.44,857.45,0.87277645]
[1766179813197,0.20278184,858.44,857.44,0.87277645]
[1766179815199,0.20278184,858.44,857.43,0.87277645]
[1766179816801,1.72722889,858.92,857.43,0.87277645]
[1766179817307,1.72722889,858.92,857.42,0.87277645]
[1766179818206,1.72722889,858.93,857.42,0.87277645]
[1766179818407,1.72722889,858.92,857.42,0.87277645]
[1766179819205,1.72722889,858.93,857.41,0.87277645]
[1766179820205,0.20276353,858.56,857.41,0.87277645]
[1766179823506,0.20276353,858.56,857.39,0.87277645]
[1766179833516,0.20276353,858.56,857.41,0.87277645]
[1766179835119,0.20276353,858.56,857.42,0.87277645]
[1766179838220,0.20276353,858.56,857.43,0.87277645]
[1766179840121,0.20276353,858.56,857.44,0.87277645]
[1766179842018,0.20276353,858.56,857.45,0.87277645]
[1766179843120,0.20276353,858.56,857.46,0.87277645]
[1766179844219,0.20276353,858.56,857.47,0.87277645]
[1766179846225,0.20276353,858.56,857.48,0.87277645]
[1766179848125,0.20276353,858.56,857.49,0.87277645]
[1766179849222,0.20276353,858.56,857.5,0.87277645]
[1766179851221,0.20276353,858.56,857.51,0.87277645]
[1766179852223,0.20276353,858.56,857.52,0.87277645]
[1766179853125,0.20276353,858.56,857.53,0.87277645]
[1766179854329,0.20276353,858.56,857.54,0.87277645]
[1766179855129,0.20276353,858.56,857.55,0.87277645]
[1766179856325,0.20276353,858.56,857.56,0.87277645]
[1766179857125,0.20276353,858.56,857.57,0.87277645]
[1766179858225,0.20276353,858.56,857.59,0.87277645]
[1766179859127,0.20276353,858.56,857.62,0.87277645]
[1766179860530,0.20276353,858.56,857.71,0.87277645]
[1766179861328,0.20276353,858.56,857.72,0.87277645]
[1766179861532,0.20276353,858.56,857.71,0.87277645]
[1766179862231,0.20276353,858.56,857.72,0.87277645]
[1766179862430,0.20276353,858.56,857.71,0.87277645]
[1766179863330,0.20276353,858.56,857.72,0.87277645]
[1766179863529,0.20276353,858.56,857.71,0.87277645]
[1766179864035,1.72722889,858.88,857.77,0.87277645]
[1766179864236,1.72722889,858.95,857.85,0.87277645]
[1766179864436,0.20271923,858.67,857.83,0.87277645]
[1766179865435,0.20271923,858.67,857.82,0.87277645]
[1766179866433,0.20271923,858.67,857.81,0.87277645]
[1766179867134,0.20271923,858.67,857.8,0.87277645]
[1766179867338,0.20271923,858.67,857.78,0.87277645]
[1766179868439,0.20271923,858.67,857.77,0.87277645]
[1766179869336,0.20271923,858.67,857.69,0.87277645]
[1766179871337,0.20271923,858.67,857.68,0.87277645]
[1766179873547,0.20271923,858.67,857.66,0.87277645]
[1766179878254,0.20271923,858.67,857.65,0.87277645]
[1766179879649,0.20271923,858.67,857.61,0.87277645]
[1766179879855,0.20271923,858.67,857.6,0.87277645]
[1766179881657,0.20271923,858.67,857.58,0.87277645]
[1766179881854,0.20271923,858.67,857.5,0.87277645]
[1766179883556,0.20271923,858.67,857.48,0.87277645]
[1766179884062,0.20271923,858.67,857.45,0.87277645]
[1766179885261,0.20271923,858.67,857.44,0.87277645]
[1766179888461,0.20271923,858.67,857.43,0.87277645]
[1766179892359,0.20271923,858.67,857.42,0.87277645]
[1766179897162,0.20271923,858.67,857.41,0.87277645]
[1766179901965,0.20271923,858.67,857.4,0.87277645]
[1766179904372,0.20271923,858.67,857.39,0.87277645]
[1766179911177,0.20271923,858.67,857.38,0.87277645]
[1766179911377,0.20271923,858.67,857.39,0.87277645]
[1766179912278,0.20271923,858.67,857.38,0.87277645]
[1766179913578,0.20271923,858.67,857.36,0.87277645]
[1766179914981,0.20271923,858.67,857.42,0.87277645]
[1766179915178,0.20271923,858.67,857.49,0.87277645]
[1766179916183,0.20271923,858.67,857.54,0.87277645]
[1766179921187,0.20271923,858.67,857.63,0.87277645]
[1766179922384,0.20271923,858.67,857.62,0.87277645]
[1766179923488,0.20271923,858.67,857.65,0.87277645]
[1766179926689,0.20271923,858.67,857.66,0.87277645]
[1766179927393,0.20271923,858.67,857.67,0.87277645]
[1766179930192,0.20271923,858.67,857.63,9.69058722]
[1766179930193,0.20271923,858.67,857.68,0.87277645]
[1766179930394,0.20271923,858.67,857.67,0.87277645]
[1766179935295,0.20271923,858.67,857.51,1.15900006]
[1766179935296,0.20271923,858.67,857.66,0.87277645]
[1766179937898,0.20271923,858.67,857.72,0.87277645]
[1766179939103,0.20271923,858.67,857.72,10.77007177]
[1766179939399,0.20271923,858.67,857.72,9.89729532]
[1766179939604,1.72722889,859.14,857.72,9.89729532]
[1766179939806,1.72722889,859.19,857.76,0.87277645]
[1766179940104,0.20268676,858.79,857.76,0.87277645]
[1766179940501,0.20268676,858.79,857.75,0.87277645]
[1766179942310,0.20268676,858.79,857.74,0.87277645]
[1766179943311,0.20268676,858.79,857.73,0.87277645]
[1766179945413,0.20268676,858.79,857.71,0.87277645]
[1766179945913,0.20268676,858.79,857.7,0.87277645]
[1766179952319,0.20268676,858.79,857.69,0.87277645]
[1766179952520,0.20268676,858.79,857.7,0.87277645]
[1766179952919,0.20268676,858.79,857.69,0.87277645]
[1766179953420,0.20268676,858.79,857.7,0.87277645]
[1766179953620,0.20268676,858.79,857.7,10.73937956]
[1766179954316,0.20268676,858.79,857.7,9.86660311]
[1766179954616,0.20268676,858.79,857.7,10.73937956]
[1766179958623,0.20268676,858.79,857.7,9.86660311]